bitfinex-derivatives/quotes_SOLF0:USTF0_20250216
["timestamp","ask_amount","ask_price","bid_price","bid_amount"]
[1739722163922,7.63366889,190.64,190.58,7.63366889]
[1739722164129,5.28002072,190.6,190.58,7.63366889]
[1739722164827,0.03392072,190.6,190.58,7.63366889]
[1739722165433,0.03392072,190.6,190.57,0.03851649]
[1739722166032,5.2463,190.58,190.57,0.03851649]
[1739722166731,0.03392072,190.6,190.57,0.03851649]
[1739722166931,5.2461,190.59,190.57,0.03851649]
[1739722167132,0.03392072,190.6,190.58,7.63366889]
[1739722167928,5.2461,190.59,190.58,7.63366889]
[1739722170427,5.27982072,190.6,190.58,7.63366889]
[1739722172237,5.2461,190.59,190.58,7.63366889]
[1739722173938,5.27982072,190.6,190.58,7.63366889]
[1739722176138,0.03392072,190.6,190.58,7.63366889]
[1739722178543,5.27982072,190.6,190.58,7.63366889]
[1739722181439,0.03392072,190.6,190.58,7.63366889]
[1739722184051,5.27972072,190.6,190.58,7.63366889]
[1739722185551,0.03392072,190.6,190.58,7.63366889]
[1739722186146,5.27982072,190.6,190.58,7.63366889]
[1739722187450,0.03392072,190.6,190.58,7.63366889]
[1739722188451,5.27982072,190.6,190.58,7.63366889]
[1739722189053,0.03392072,190.6,190.58,7.63366889]
[1739722194959,5.27992072,190.6,190.58,7.63366889]
[1739722195158,0.03392072,190.6,190.58,7.63366889]
[1739722201267,5.2447,190.64,190.58,7.63366889]
[1739722201459,5.2447,190.64,190.63,7.63366889]
[1739722201863,62.05831533,190.7,190.63,7.63366889]
[1739722202164,7.63366889,190.72,190.67,7.63366889]
[1739722202365,0.03430803,190.68,190.67,7.63366889]
[1739722202665,7.63366889,190.74,190.67,7.63366889]
[1739722202966,5.2804837,190.69,190.67,7.63366889]
[1739722203166,7.63366889,190.72,190.66,0.03345316]
[1739722203368,7.63366889,190.68,190.61,7.63366889]
[1739722203666,7.63366889,190.66,190.61,7.63366889]
[1739722204065,5.2449,190.64,190.61,7.63366889]
[1739722204661,5.28395253,190.64,190.61,7.66916567]
[1739722205067,0.03905253,190.64,190.61,7.66916567]
[1739722205261,0.03905253,190.64,190.61,0.03549678]
[1739722205966,5.2452,190.62,190.61,0.03549678]
[1739722206171,0.03905253,190.64,190.61,0.03549678]
[1739722206469,0.03905253,190.64,190.61,7.66916567]
[1739722207373,0.03905253,190.64,190.63,7.63366889]
[1739722210464,5.2438,190.68,190.63,7.63366889]
[1739722210663,5.2438,190.68,190.66,7.63366889]
[1739722211066,5.2439,190.67,190.66,7.63366889]
[1739722212467,5.2441,190.66,190.65,0.0393858]
[1739722215479,5.2441,190.66,190.65,8.58e-05]
[1739722216679,12.87776889,190.66,190.65,8.58e-05]
[1739722217182,14.44216889,190.66,190.65,8.58e-05]
[1739722221787,6.8085,190.66,190.65,8.58e-05]
[1739722222786,5.2441,190.66,190.65,8.58e-05]
[1739722223683,0.03632001,190.68,190.65,8.58e-05]
[1739722224188,5.2439,190.67,190.65,8.58e-05]
[1739722225088,0.03632001,190.68,190.65,8.58e-05]
[1739722225290,5.2441,190.66,190.65,8.58e-05]
[1739722228891,0.03632001,190.68,190.65,8.58e-05]
[1739722229094,0.03632001,190.68,190.66,7.63366889]
[1739722235194,7.63366889,190.82,190.67,5.2438]
[1739722235392,3.3116,190.81,190.75,7.63366889]
[1739722236122,5.241,190.78,190.75,7.63366889]
[1739722236298,25.22987502,190.84,190.77,7.63366889]
[1739722236801,0.03894326,190.82,190.79,0.0380069]
[1739722237296,5.2402,190.81,190.79,0.0380069]
[1739722237902,0.03894326,190.82,190.79,0.0380069]
[1739722238202,5.2403,190.8,190.79,0.0380069]
[1739722239307,0.03894326,190.82,190.79,0.0380069]
[1739722239912,5.2403,190.8,190.79,0.0380069]
[1739722241306,5.2415,190.76,190.75,7.63366889]
[1739722242007,5.2411,190.78,190.75,7.63366889]
[1739722242510,5.2412,190.77,190.75,0.03947064]
[1739722242709,5.2412,190.77,190.76,7.63366889]
[1739722243212,0.03805581,190.78,190.76,7.63366889]
[1739722243407,5.27895581,190.78,190.76,7.63366889]
[1739722244815,0.03805581,190.78,190.76,7.63366889]
[1739722245111,5.2411,190.77,190.76,7.63366889]
[1739722254315,0.03805581,190.78,190.76,7.63366889]
[1739722261729,4.8599,190.87,190.76,7.63366889]
[1739722262029,4.8599,190.87,190.8,7.63366889]
[1739722262228,7.63366889,190.86,190.78,7.63366889]
[1739722262730,7.63366889,190.84,190.78,7.63366889]
[1739722262931,7.67278096,190.84,190.8,0.04021928]
[1739722263432,5.24,190.81,190.8,0.04021928]
[1739722266130,5.24,190.81,190.8,7.67388817]
[1739722266534,5.24,190.81,190.8,0.04021928]
[1739722269237,7.67278096,190.84,190.78,7.63366889]
[1739722269437,5.2406,190.79,190.78,7.63366889]
[1739722269739,7.63366889,190.82,190.74,7.63366889]
[1739722269938,5.2415,190.76,190.74,7.63366889]
[1739722270838,5.2417,190.75,190.74,7.63366889]
[1739722273739,0.03795817,190.77,190.74,7.63366889]
[1739722274135,0.03795817,190.77,190.76,7.63366889]
[1739722280842,1.5483,190.87,190.76,7.63366889]
[1739722281042,1.5483,190.87,190.81,7.63366889]
[1739722281344,5.2395,190.83,190.81,7.63366889]
[1739722282045,5.2397,190.82,190.81,7.63366889]
[1739722283844,5.24,190.81,190.8,0.0349803]
[1739722287146,0.03563245,190.84,190.8,0.0349803]
[1739722287346,0.03563245,190.84,190.81,7.63366889]
[1739722287845,5.2397,190.82,190.81,7.63366889]
[1739722289647,5.2395,190.83,190.81,7.63366889]
[1739722290040,0.03563245,190.84,190.81,7.63366889]
[1739722292148,0.03563245,190.84,190.8,0.0349803]
[1739722292354,5.24,190.81,190.8,0.0349803]
[1739722293245,5.24,190.81,190.8,8.03e-05]
[1739722296952,8.4691,190.83,190.8,8.03e-05]
[1739722297448,5.2398,190.82,190.8,8.03e-05]
[1739722300857,5.24,190.81,190.8,8.03e-05]
[1739722302060,5.2398,190.82,190.8,8.03e-05]
[1739722302766,1.6193,190.83,190.8,8.03e-05]
[1739722303366,5.24,190.82,190.8,8.03e-05]
[1739722306565,5.2396,190.83,190.81,7.63366889]
[1739722306764,0.03563245,190.84,190.81,7.63366889]
[1739722307162,5.2397,190.83,190.81,7.63366889]
[1739722307362,0.03563245,190.84,190.81,7.63366889]
[1739722307767,0.03563245,190.84,190.83,7.63366889]
[1739722309872,5.27483245,190.84,190.83,7.63366889]
[1739722311674,0.03563245,190.84,190.83,7.63366889]
[1739722312674,5.27483245,190.84,190.83,7.63366889]
[1739722314278,0.03563245,190.84,190.83,7.63366889]
[1739722315178,5.27483245,190.84,190.83,7.63366889]
[1739722316380,0.03563245,190.84,190.83,7.63366889]
[1739722316776,5.27483245,190.84,190.83,7.63366889]
[1739722316980,0.03563245,190.84,190.83,7.63366889]
[1739722317480,5.27483245,190.84,190.83,7.63366889]
[1739722318581,0.03563245,190.84,190.83,7.63366889]
[1739722319681,5.27483245,190.84,190.83,7.63366889]
[1739722320284,0.03563245,190.84,190.83,7.63366889]
[1739722332794,5.27483245,190.84,190.83,7.63366889]
[1739722335000,0.03563245,190.84,190.83,7.63366889]
[1739722336296,5.27483245,190.84,190.83,7.63366889]
[1739722336495,0.03563245,190.84,190.81,7.63366889]
[1739722337197,0.03563245,190.84,190.8,8.03e-05]
[1739722337390,5.24,190.81,190.8,8.03e-05]
[1739722337901,0.03563245,190.84,190.8,8.03e-05]
[1739722339496,5.27503245,190.84,190.8,8.03e-05]
[1739722339794,0.03563245,190.84,190.8,8.03e-05]
[1739722341295,0.03563245,190.84,190.81,7.63366889]
[1739722341799,0.03563245,190.84,190.83,7.63366889]
[1739722342599,0.03563245,190.84,190.81,7.63366889]
[1739722342993,0.03563245,190.84,190.83,7.63366889]
[1739722346403,87.46670327,190.95,190.83,251.63366889]
[1739722346602,87.46670327,190.95,190.93,7.63366889]
[1739722346795,79.84580327,190.95,190.93,7.63366889]
[1739722347000,145.63220278,190.97,190.93,7.63366889]
[1739722347204,145.63220278,190.97,190.96,7.63366889]
[1739722347703,0.04005443,190.98,190.96,11.27134139]
[1739722348007,0.04005443,190.98,190.97,3.6376725]
[1739722350907,0.04005443,190.98,190.96,7.63366889]
[1739722354609,5.2356,190.97,190.96,7.63366889]
[1739722358505,0.04005443,190.98,190.96,7.63366889]
[1739722359314,5.27545443,190.98,190.96,7.63366889]
[1739722360416,0.04005443,190.98,190.96,7.63366889]
[1739722366621,5.27545443,190.98,190.96,7.63366889]
[1739722367721,5.2356,190.97,190.96,7.63366889]
[1739722371626,5.2359,190.96,190.95,0.03674647]
[1739722376833,0.04005443,190.98,190.95,0.03674647]
[1739722376834,5.2357,190.97,190.95,0.03674647]
[1739722377329,0.04005443,190.98,190.95,0.03674647]
[1739722378034,5.2359,190.96,190.95,0.03674647]
[1739722383436,5.2367,190.93,190.92,7.63366889]
[1739722383737,7.67372332,190.98,190.92,7.63366889]
[1739722383937,5.2367,190.93,190.92,7.63366889]
[1739722384138,7.67372332,190.98,190.92,7.63366889]
[1739722384640,5.2367,190.94,190.93,0.03858308]
[1739722385236,5.2367,190.94,190.93,3.6670021]
[1739722385436,5.2367,190.94,190.93,0.03858308]
[1739722385635,7.63366889,190.96,190.93,0.03858308]
[1739722385840,0.04005443,190.98,190.93,0.03858308]
[1739722386139,0.04005443,190.98,190.95,7.63366889]
[1739722386731,0.04005443,190.98,190.96,3.63018909]
[1739722386931,0.04005443,190.98,190.95,7.63366889]
[1739722387331,0.04005443,190.98,190.96,3.63218505]
[1739722387540,0.04005443,190.98,190.95,7.63366889]
[1739722387742,0.04005443,190.98,190.96,3.63248939]
[1739722387936,0.04005443,190.98,190.95,7.63366889]
[1739722388133,5.27545443,190.98,190.96,3.63248229]
[1739722388334,5.27545443,190.98,190.95,7.63366889]
[1739722388539,0.04005443,190.98,190.96,3.63540587]
[1739722388738,0.04005443,190.98,190.93,7.67225197]
[1739722389038,0.04005443,190.98,190.94,3.63579931]
[1739722389241,5.2359,190.97,190.95,3.63579931]
[1739722389438,5.2359,190.97,190.96,3.63579931]
[1739722392544,5.2356,190.97,190.96,3.64208411]
[1739722397143,5.2364,190.94,190.93,0.03858308]
[1739722400045,12.87006889,190.94,190.93,0.03858308]
[1739722400240,12.87006889,190.94,190.93,8.308e-05]
[1739722405848,28.64006889,190.94,190.93,8.308e-05]
[1739722406244,7.63366889,190.89,190.83,7.63366889]
[1739722406450,1.684,190.88,190.81,7.63366889]
[1739722407351,0.03631556,190.86,190.83,0.03397366]
[1739722408656,1.67311556,190.86,190.83,0.03397366]
[1739722408952,5.2394,190.84,190.83,0.03397366]
[1739722420152,1.67311556,190.86,190.83,0.03397366]
[1739722420360,5.239,190.85,190.83,0.03397366]
[1739722420649,0.03631556,190.86,190.83,0.03397366]
[1739722420855,5.2389,190.85,190.83,0.03397366]
[1739722421353,5.2392,190.84,190.83,0.03397366]
[1739722421751,5.27511556,190.86,190.83,0.03397366]
[1739722423055,5.239,190.85,190.83,0.03397366]
[1739722423249,0.03631556,190.86,190.83,0.03397366]
[1739722423755,5.2392,190.84,190.83,0.03397366]
[1739722424752,0.03631556,190.86,190.83,0.03397366]
[1739722425255,0.03631556,190.86,190.83,7.66764255]
[1739722426357,5.27491556,190.86,190.83,7.66764255]
[1739722428255,0.03631556,190.86,190.83,7.66764255]
[1739722429859,5.27501556,190.86,190.83,7.66764255]
[1739722431057,0.03631556,190.86,190.83,7.66764255]
[1739722431659,5.27501556,190.86,190.83,7.66764255]
[1739722431854,0.03631556,190.86,190.83,7.66764255]
[1739722432161,5.27511556,190.86,190.83,7.66764255]
[1739722435054,0.03631556,190.86,190.83,7.66764255]
[1739722435462,5.27511556,190.86,190.83,7.66764255]
[1739722435659,0.03631556,190.86,190.83,7.66764255]
[1739722436058,0.03631556,190.86,190.83,0.03397366]
[1739722436763,5.2391,190.85,190.83,0.03397366]
[1739722437260,0.03631556,190.86,190.83,0.03397366]
[1739722437457,5.2389,190.85,190.83,0.03397366]
[1739722439262,5.27501556,190.86,190.83,7.66764255]
[1739722440158,0.03631556,190.86,190.83,7.66764255]
[1739722441265,5.27501556,190.86,190.83,7.66764255]
[1739722441464,0.03631556,190.86,190.83,7.66764255]
[1739722443364,5.27501556,190.86,190.83,7.66764255]
[1739722444068,0.03631556,190.86,190.83,7.66764255]
[1739722450167,5.27501556,190.86,190.83,7.66764255]
[1739722451570,0.03631556,190.86,190.83,7.66764255]
[1739722452768,5.27501556,190.86,190.83,7.66764255]
[1739722454872,0.03631556,190.86,190.83,0.03397366]
[1739722455071,5.2392,190.84,190.83,0.03397366]
[1739722458975,5.2392,190.84,190.83,7.366e-05]
[1739722499905,0.03631556,190.86,190.83,7.63374255]
[1739722500406,0.03631556,190.86,190.83,7.366e-05]
[1739722500407,5.2392,190.84,190.83,7.366e-05]
[1739722505506,25.02936889,190.85,190.73,36.7428111]
[1739722505706,5.2413,190.77,190.73,36.7428111]
[1739722505908,7.63366889,190.79,190.73,29.10914221]
[1739722506109,7.63366889,190.79,190.72,3.3026]
[1739722506506,5.2416,190.76,190.72,3.3026]
[1739722506706,5.2416,190.76,190.74,0.03713147]
[1739722507114,0.03840091,190.77,190.74,0.03713147]
[1739722507312,5.2417,190.75,190.74,0.03713147]
[1739722509010,5.2414,190.76,190.74,0.03713147]
[1739722510002,5.27960091,190.77,190.74,0.03713147]
[1739722512515,0.03840091,190.77,190.74,0.03713147]
[1739722512715,5.2417,190.75,190.74,0.03713147]
[1739722515618,12.87536889,190.75,190.74,0.03713147]
[1739722519322,7.63366889,190.73,190.64,7.63366889]
[1739722519920,7.63366889,190.71,190.64,7.63366889]
[1739722520521,0.0347179,190.69,190.66,0.0351493]
[1739722521023,5.2439,190.67,190.66,0.0351493]
[1739722522523,5.2436,190.68,190.66,0.0351493]
[1739722523019,7.66838679,190.69,190.66,0.0351493]
[1739722523528,12.91198679,190.69,190.66,0.0351493]
[1739722523726,7.66838679,190.69,190.66,0.0351493]
[1739722524628,5.2438,190.68,190.66,0.0351493]
[1739722525330,5.2439,190.67,190.66,0.0351493]
[1739722527429,5.2436,190.68,190.66,0.0351493]
[1739722528830,5.2439,190.67,190.66,0.0351493]
[1739722529330,5.2437,190.68,190.66,0.0351493]
[1739722530538,7.66838679,190.69,190.66,0.0351493]
[1739722530733,5.2439,190.67,190.66,0.0351493]
[1739722530933,7.66838679,190.69,190.66,0.0351493]
[1739722532135,12.91188679,190.69,190.66,0.0351493]
[1739722532535,7.66838679,190.69,190.66,0.0351493]
[1739722534235,5.2436,190.68,190.66,0.0351493]
[1739722534842,0.0347179,190.69,190.66,7.66881819]
[1739722536633,0.0347179,190.69,190.66,0.0351493]
[1739722537340,5.2436,190.68,190.66,0.0351493]
[1739722538538,0.0347179,190.69,190.66,0.0351493]
[1739722538942,0.0347179,190.69,190.66,7.66881819]
[1739722540344,0.0347179,190.69,190.68,7.63366889]
[1739722548351,5.2421,190.74,190.71,7.63366889]
[1739722548547,1.5947,190.76,190.71,7.63366889]
[1739722548749,7.63366889,190.79,190.71,7.63366889]
[1739722548954,7.63366889,190.79,190.73,7.63366889]
[1739722549361,5.2412,190.77,190.74,0.03489981]
[1739722549653,0.03451632,190.78,190.74,0.03489981]
[1739722558567,5.27541632,190.78,190.74,0.03489981]
[1739722558761,0.03451632,190.78,190.74,0.03489981]
[1739722560570,0.03451632,190.78,190.75,7.63366889]
[1739722561868,5.27541632,190.78,190.75,7.63366889]
[1739722562266,0.03451632,190.78,190.74,0.03489981]
[1739722563269,5.27561632,190.78,190.74,0.03489981]
[1739722566067,0.03451632,190.78,190.74,0.03489981]
[1739722566271,0.03451632,190.78,190.75,7.63366889]
[1739722566674,5.2412,190.77,190.74,0.03489981]
[1739722568582,5.27541632,190.78,190.74,0.03489981]
[1739722568770,0.03451632,190.78,190.74,0.03489981]
[1739722569074,0.03451632,190.78,190.75,7.63366889]
[1739722569275,0.03451632,190.78,190.74,0.03489981]
[1739722569871,5.2416,190.76,190.74,0.03489981]
[1739722570075,0.03451632,190.78,190.74,0.03489981]
[1739722570277,5.2417,190.75,190.74,0.03489981]
[1739722571676,12.87536889,190.75,190.74,0.03489981]
[1739722572584,5.2423,190.73,190.69,7.63366889]
[1739722573579,5.2426,190.72,190.69,7.63366889]
[1739722573779,5.2426,190.72,190.69,7.6723369]
[1739722575187,0.03454757,190.73,190.69,7.6723369]
[1739722575686,5.27694757,190.73,190.69,7.6723369]
[1739722575886,7.66821646,190.73,190.69,0.03866801]
[1739722576384,5.2428,190.71,190.69,0.03866801]
[1739722576585,7.66821646,190.73,190.69,0.03866801]
[1739722576782,7.63366889,190.71,190.69,0.03866801]
[1739722576978,5.243,190.7,190.69,0.03866801]
[1739722584887,12.87646889,190.71,190.69,0.03866801]
[1739722586482,8.5515,190.72,190.69,0.03866801]
[1739722586689,3.3089,190.72,190.69,0.03866801]
[1739722587891,8.5514,190.72,190.69,0.03866801]
[1739722590194,5.2429,190.71,190.69,0.03866801]
[1739722590493,7.63366889,190.71,190.69,0.03866801]
[1739722590693,5.2435,190.69,190.64,38.54308875]
[1739722591191,5.2439,190.67,190.61,7.63366889]
[1739722591891,0.03706847,190.66,190.61,7.63366889]
[1739722592688,5.28126847,190.66,190.61,7.63366889]
[1739722593292,0.03706847,190.66,190.61,7.63366889]
[1739722593491,5.2445,190.65,190.61,7.63366889]
[1739722593890,0.03706847,190.66,190.61,7.63366889]
[1739722595289,5.28116847,190.66,190.61,7.63366889]
[1739722595696,0.03706847,190.66,190.61,7.63366889]
[1739722595995,5.2445,190.65,190.61,7.63366889]
[1739722596294,0.03706847,190.66,190.61,7.63366889]
[1739722597596,0.03706847,190.66,190.63,7.63366889]
[1739722598893,0.03706847,190.66,190.65,7.63366889]
[1739722621009,0.03706847,190.66,190.63,7.63366889]
[1739722623804,5.28126847,190.66,190.63,7.63366889]
[1739722627215,0.03706847,190.66,190.63,7.63366889]
[1739722627815,5.28126847,190.66,190.63,7.63366889]
[1739722628015,0.03706847,190.66,190.63,7.63366889]
[1739722629016,5.28146847,190.66,190.63,7.63366889]
[1739722629819,0.03706847,190.66,190.61,7.63366889]
[1739722630317,5.2453,190.62,190.59,7.63366889]
[1739722630614,7.63366889,190.65,190.59,7.63366889]
[1739722631419,7.63366889,190.65,190.58,29.10914221]
[1739722631614,5.2456,190.61,190.58,29.10914221]
[1739722632017,5.28577942,190.61,190.58,29.10914221]
[1739722633322,0.04017942,190.61,190.58,29.10914221]
[1739722633524,5.2459,190.6,190.58,29.10914221]
[1739722634422,5.2459,190.6,190.57,7.63366889]
[1739722635522,0.04017942,190.61,190.57,7.63366889]
[1739722636020,7.67384831,190.61,190.55,7.63366889]
[1739722636222,7.67384831,190.61,190.53,7.63366889]
[1739722637925,7.63366889,190.59,190.53,7.63366889]
[1739722638225,5.2466,190.57,190.53,7.63366889]
[1739722638724,5.28675287,190.57,190.53,7.63366889]
[1739722638933,0.04015287,190.57,190.53,7.63366889]
[1739722642331,5.247,190.56,190.53,7.63366889]
[1739722642634,0.04015287,190.57,190.53,7.63366889]
[1739722643735,0.04015287,190.57,190.55,7.63366889]
[1739722644726,1.5505,190.65,190.55,7.63366889]
[1739722644926,1.694,190.68,190.61,7.63366889]
[1739722645126,1.694,190.68,190.63,7.63366889]
[1739722646029,0.04025417,190.67,190.64,0.03870755]
[1739722646229,7.67392306,190.67,190.64,0.03870755]
[1739722646434,7.63366889,190.65,190.59,7.63366889]
[1739722646628,7.63366889,190.63,190.57,7.63366889]
[1739722647734,5.2457,190.61,190.57,7.63366889]
[1739722647940,0.03469027,190.62,190.57,7.63366889]
[1739722648126,0.03469027,190.62,190.59,7.63366889]
[1739722651134,0.03469027,190.62,190.57,7.63366889]
[1739722651536,0.03469027,190.62,190.55,7.63366889]
[1739722652135,5.246,190.6,190.55,7.63366889]
[1739722652338,0.03469027,190.62,190.55,7.63366889]
[1739722653039,5.2461,190.59,190.55,7.63366889]
[1739722654037,5.2464,190.58,190.55,7.63366889]
[1739722654238,7.63366889,190.61,190.55,7.63366889]
[1739722654639,5.2468,190.57,190.55,7.63366889]
[1739722654841,7.63366889,190.61,190.55,7.63366889]
[1739722655032,0.0398251,190.58,190.55,7.63366889]
[1739722655440,5.2469,190.56,190.55,7.63366889]
[1739722656843,0.0398251,190.58,190.55,7.63366889]
[1739722657043,0.0398251,190.58,190.57,7.63366889]
[1739722660337,5.2861251,190.58,190.57,7.63366889]
[1739722661338,0.0398251,190.58,190.57,7.63366889]
[1739722669547,1.5315,190.66,190.57,7.63366889]
[1739722669849,1.5315,190.66,190.62,7.63366889]
[1739722670351,5.2445,190.65,190.62,7.63366889]
[1739722670651,0.03846896,190.65,190.62,7.67194347]
[1739722671651,5.28306896,190.65,190.62,7.67194347]
[1739722671847,0.03846896,190.65,190.62,7.67194347]
[1739722674351,5.28286896,190.65,190.62,7.67194347]
[1739722674548,0.03846896,190.65,190.62,7.67194347]
[1739722676452,5.2448,190.64,190.62,7.67194347]
[1739722678852,0.03846896,190.65,190.62,0.03827458]
[1739722679055,7.67213785,190.65,190.62,0.03827458]
[1739722680045,7.63366889,190.63,190.58,7.63366889]
[1739722680851,7.63366889,190.63,190.56,7.63366889]
[1739722681247,0.03651743,190.61,190.56,7.63366889]
[1739722682454,0.03651743,190.61,190.58,7.63366889]
[1739722683357,0.03651743,190.61,190.6,7.63366889]
[1739722685958,0.03651743,190.61,190.58,7.63366889]
[1739722686457,0.03651743,190.61,190.6,7.63366889]
[1739722686858,0.03651743,190.61,190.58,7.63366889]
[1739722687061,0.03651743,190.61,190.56,7.63366889]
[1739722687359,5.2466,190.58,190.56,7.63366889]
[1739722687760,0.03651743,190.61,190.56,7.63366889]
[1739722688559,5.2461,190.59,190.56,7.63366889]
[1739722689362,5.2464,190.58,190.56,7.63366889]
[1739722689960,5.2461,190.59,190.56,7.63366889]
[1739722690459,0.03651743,190.61,190.56,7.63366889]
[1739722690660,5.2463,190.58,190.56,7.63366889]
[1739722690859,0.03651743,190.61,190.56,7.63366889]
[1739722692259,5.2463,190.59,190.56,7.63366889]
[1739722692958,5.2465,190.58,190.56,7.63366889]
[1739722694262,5.2461,190.59,190.56,7.63366889]
[1739722697162,5.28221743,190.61,190.56,7.63366889]
[1739722697353,5.28221743,190.61,190.58,7.63366889]
[1739722697863,0.03651743,190.61,190.58,7.63366889]
[1739722698059,5.2458,190.6,190.58,7.63366889]
[1739722698460,5.2458,190.6,190.56,7.63366889]
[1739722698860,5.28601942,190.6,190.56,7.63366889]
[1739722699467,5.2463,190.59,190.56,7.63366889]
[1739722701865,0.04021942,190.6,190.56,7.63366889]
[1739722702063,5.2464,190.58,190.56,7.63366889]
[1739722705670,5.2466,190.57,190.56,7.63366889]
[1739722711478,5.2464,190.58,190.56,7.63366889]
[1739722711776,0.04021942,190.6,190.56,7.63366889]
[1739722712576,5.2465,190.58,190.56,7.63366889]
[1739722716579,5.2466,190.57,190.56,7.63366889]
[1739722720181,5.2464,190.58,190.56,7.63366889]
[1739722721677,0.04021942,190.6,190.56,7.63366889]
[1739722721878,5.2466,190.57,190.56,7.63366889]
[1739722741490,0.04021942,190.6,190.54,7.63366889]
[1739722741789,5.2474,190.55,190.54,7.63366889]
[1739722743390,7.63366889,190.57,190.5,14.91095444]
[1739722743589,1.5876,190.56,190.5,14.91095444]
[1739722743788,0.03476142,190.55,190.5,14.91095444]
[1739722743993,5.2479,190.53,190.5,14.91095444]
[1739722744490,0.03476142,190.55,190.5,14.91095444]
[1739722745395,5.2476,190.54,190.5,14.91095444]
[1739722745693,5.2476,190.54,190.5,7.63366889]
[1739722746297,5.2478,190.53,190.5,7.63366889]
[1739722746494,0.03476142,190.55,190.52,7.63366889]
[1739722746797,7.63366889,190.61,190.54,7.63366889]
[1739722746987,0.03590274,190.55,190.54,7.63366889]
[1739722747191,9.30526889,190.61,190.54,7.63366889]
[1739722747498,0.03419901,190.56,190.46,0.9836]
[1739722747795,0.03419901,190.56,190.55,7.63366889]
[1739722758398,5.28109901,190.56,190.55,7.63366889]
[1739722768410,0.03419901,190.56,190.55,7.63366889]
[1739722770215,5.28109901,190.56,190.55,7.63366889]
[1739722770601,0.03419901,190.56,190.55,7.63366889]
[1739722771303,5.28109901,190.56,190.55,7.63366889]
[1739722772107,5.28109901,190.56,190.53,7.63366889]
[1739722772306,5.2472,190.55,190.53,7.63366889]
[1739722772911,0.03419901,190.56,190.51,7.63366889]
[1739722773600,5.2478,190.53,190.51,7.63366889]
[1739722773899,0.03419901,190.56,190.51,7.63366889]
[1739722774100,5.2474,190.54,190.51,7.63366889]
[1739722774307,0.03419901,190.56,190.51,7.63366889]
[1739722775008,5.2475,190.54,190.51,7.63366889]
[1739722775311,5.2475,190.54,190.53,7.63366889]
[1739722779212,5.2472,190.55,190.53,7.63366889]
[1739722779913,0.03419901,190.56,190.53,7.63366889]
[1739722780316,5.2472,190.55,190.53,7.63366889]
[1739722782120,5.2474,190.54,190.53,7.63366889]
[1739722782316,0.03419901,190.56,190.51,7.63366889]
[1739722782821,5.2479,190.53,190.51,7.63366889]
[1739722783419,5.248,190.52,190.51,7.63366889]
[1739722784819,5.2486,190.5,190.49,7.63366889]
[1739722789121,0.03589767,190.51,190.49,7.63366889]
[1739722790416,5.28419767,190.51,190.49,7.63366889]
[1739722791720,5.2485,190.5,190.49,7.63366889]
[1739722795024,0.03589767,190.51,190.49,7.63366889]
[1739722795629,5.28419767,190.51,190.49,7.63366889]
[1739722797521,5.2485,190.5,190.49,7.63366889]
[1739722799325,5.28419767,190.51,190.49,7.63366889]
[1739722799529,0.03589767,190.51,190.49,7.63366889]
[1739722799829,5.28429767,190.51,190.49,7.63366889]
[1739722801331,0.03589767,190.51,190.49,7.63366889]
[1739722805933,0.03589767,190.51,190.49,12.88246889]
[1739722806134,0.03589767,190.51,190.49,7.63366889]
[1739722806434,7.63366889,190.61,190.49,7.63366889]
[1739722806636,7.63366889,190.61,190.55,7.63366889]
[1739722807437,5.2469,190.56,190.55,7.63366889]
[1739722810343,5.2468,190.57,190.55,7.63366889]
[1739722811641,5.2464,190.58,190.55,7.63366889]
[1739722811942,7.63366889,190.57,190.54,0.03995018]
[1739722812134,9.25666889,190.57,190.54,0.03995018]
[1739722812742,5.2472,190.55,190.54,0.03995018]
[1739722812941,7.63366889,190.55,190.49,7.63366889]
[1739722813343,5.2485,190.51,190.49,7.63366889]
[1739722814141,5.28617416,190.52,190.49,7.63366889]
[1739722815739,0.03817416,190.52,190.51,7.63366889]
[1739722821448,5.28617416,190.52,190.51,7.63366889]
[1739722821943,5.2485,190.5,190.49,7.63366889]
[1739722823545,5.2483,190.51,190.49,7.63366889]
[1739722823846,0.03817416,190.52,190.49,7.63366889]
[1739722824445,5.28627416,190.52,190.49,7.63366889]
[1739722826749,0.03817416,190.52,190.49,7.63366889]
[1739722829345,0.03817416,190.52,190.51,7.63366889]
[1739722837655,0.03817416,190.52,190.49,7.63366889]
[1739722838359,0.03817416,190.52,190.51,7.63366889]
[1739722863685,6.8472,190.57,190.51,7.63366889]
[1739722863984,1.6004,190.57,190.56,7.63366889]
[1739722866079,0.03772308,190.58,190.56,7.63366889]
[1739722877393,0.03772308,190.58,190.56,12.88036889]
[1739722877594,0.03772308,190.58,190.56,7.63366889]
[1739722882295,5.245,190.63,190.56,7.63366889]
[1739722882496,3.211,190.67,190.61,7.63366889]
[1739722883498,0.03687733,190.66,190.62,0.03469839]
[1739722883700,7.67054622,190.66,190.62,0.03469839]
[1739722884097,5.245,190.63,190.62,0.03469839]